[Event "Titled Tuesday Blitz October 31 Early 2023"]
[White "Muhammad Shahzeb"]
[Black "Lohani, Sujana"]
[WhiteFideId "7804806"]
[BlackFideId "12311987"]
[WhiteElo "2315"]
[BlackElo "1950"]
[Result "1-0"]
[Round "3"]
[TimeControl "180+1"]
[Date "2023.10.31"]
[WhiteClock "0:00:14"]
[BlackClock "0:00:00"]
[Board "195"]

1. e4 {[%clk 0:02:57]}  c5 {[%clk 0:02:36]} 2. Nc3 {[%clk 0:02:48]}  Nc6 {[%clk 0:02:37]} 3. f4 {[%clk 0:02:49]}  a6 {[%clk 0:02:15]} 4. Nf3 {[%clk 0:02:50]}  e6 {[%clk 0:02:09]} 5. d4 {[%clk 0:02:23]}  cxd4 {[%clk 0:02:00]} 6. Nxd4 {[%clk 0:02:21]}  Be7 {[%clk 0:01:55]} 7. Be3 {[%clk 0:01:59]}  Nf6 {[%clk 0:01:32]} 8. e5 {[%clk 0:01:58]}  Ng8 {[%clk 0:01:23]} 9. Bd3 {[%clk 0:01:44]}  d6 {[%clk 0:01:22]} 10. Qf3 {[%clk 0:01:40]}  dxe5 {[%clk 0:01:19]} 11. Nxc6 {[%clk 0:01:38]}  bxc6 {[%clk 0:01:16]} 12. fxe5 {[%clk 0:01:36]}  Bd7 {[%clk 0:01:10]} 13. O-O {[%clk 0:01:33]}  f6 {[%clk 0:01:03]} 14. Qh5+ {[%clk 0:01:18]}  Kf8 {[%clk 0:00:55]} 15. Ne4 {[%clk 0:01:12]}  Be8 {[%clk 0:00:36]} 16. Qh3 {[%clk 0:00:48]}  Bf7 {[%clk 0:00:31]} 17. exf6 {[%clk 0:00:39]}  Nxf6 {[%clk 0:00:30]} 18. Ng5 {[%clk 0:00:37]}  Qd5 {[%clk 0:00:18]} 19. Nxf7 {[%clk 0:00:33]}  Kxf7 {[%clk 0:00:18]} 20. b3 {[%clk 0:00:27]}  Bc5 {[%clk 0:00:17]} 21. Kh1 {[%clk 0:00:24]}  Bxe3 {[%clk 0:00:16]} 22. Qxe3 {[%clk 0:00:25]}  Rad8 {[%clk 0:00:15]} 23. Bc4 {[%clk 0:00:23]}  Qd6 {[%clk 0:00:11]} 24. Rae1 {[%clk 0:00:18]}  Rhe8 {[%clk 0:00:10]} 25. Qg5 {[%clk 0:00:17]}  Kg8 {[%clk 0:00:09]} 26. Rxf6 {[%clk 0:00:16]}  Qd4 {[%clk 0:00:00]} 27. Rfxe6 {[%clk 0:00:14]} 1-0


[Site "https://www.chess.com"]

[Event "Titled Tuesday Blitz October 31 Early 2023"]
[White "Desideri, Ricardo Maruchi"]
[Black "Petrova, Irina"]
[WhiteFideId "2110440"]
[BlackFideId "14124122"]
[WhiteElo "1929"]
[BlackElo "2311"]
[Result "0-1"]
[Round "3"]
[TimeControl "180+1"]
[Date "2023.10.31"]
[WhiteClock "0:00:16"]
[BlackClock "0:01:54"]
[Board "196"]

1. e4 {[%clk 0:02:59]}  d6 {[%clk 0:03:00]} 2. d4 {[%clk 0:02:58]}  Nf6 {[%clk 0:03:01]} 3. Nc3 {[%clk 0:02:56]}  e5 {[%clk 0:02:59]} 4. Nge2 {[%clk 0:02:53]}  Nc6 {[%clk 0:02:57]} 5. f3 {[%clk 0:02:47]}  Be7 {[%clk 0:02:56]} 6. Be3 {[%clk 0:02:44]}  O-O {[%clk 0:02:54]} 7. g4 {[%clk 0:02:43]}  exd4 {[%clk 0:02:51]} 8. Nxd4 {[%clk 0:02:42]}  Nxd4 {[%clk 0:02:50]} 9. Bxd4 {[%clk 0:02:42]}  c5 {[%clk 0:02:51]} 10. Be3 {[%clk 0:02:40]}  a6 {[%clk 0:02:48]} 11. g5 {[%clk 0:02:34]}  Nd7 {[%clk 0:02:47]} 12. Qd2 {[%clk 0:02:33]}  Ne5 {[%clk 0:02:46]} 13. Be2 {[%clk 0:02:33]}  b5 {[%clk 0:02:27]} 14. Nd5 {[%clk 0:02:32]}  Be6 {[%clk 0:02:20]} 15. Nxe7+ {[%clk 0:02:29]}  Qxe7 {[%clk 0:02:20]} 16. Rg1 {[%clk 0:02:22]}  Bc4 {[%clk 0:02:15]} 17. f4 {[%clk 0:02:16]}  Bxe2 {[%clk 0:02:09]} 18. Qxe2 {[%clk 0:02:16]}  Nc4 {[%clk 0:02:07]} 19. Bc1 {[%clk 0:02:15]}  Rfe8 {[%clk 0:02:06]} 20. b3 {[%clk 0:02:13]}  Qxe4 {[%clk 0:02:06]} 21. Qxe4 {[%clk 0:02:05]}  Rxe4+ {[%clk 0:02:06]} 22. Kf2 {[%clk 0:02:05]}  Nb6 {[%clk 0:02:07]} 23. Kf3 {[%clk 0:02:00]}  Rae8 {[%clk 0:02:06]} 24. h4 {[%clk 0:01:24]}  Re1 {[%clk 0:02:01]} 25. Rxe1 {[%clk 0:01:20]}  Rxe1 {[%clk 0:02:02]} 26. Bb2 {[%clk 0:01:19]}  Rxa1 {[%clk 0:02:02]} 27. Bxa1 {[%clk 0:01:19]}  Kf8 {[%clk 0:02:02]} 28. f5 {[%clk 0:01:16]}  g6 {[%clk 0:02:00]} 29. Kf4 {[%clk 0:01:15]}  Ke7 {[%clk 0:01:59]} 30. Bf6+ {[%clk 0:01:07]}  Kd7 {[%clk 0:01:58]} 31. Kg4 {[%clk 0:01:04]}  Nd5 {[%clk 0:01:55]} 32. fxg6 {[%clk 0:00:50]}  fxg6 {[%clk 0:01:56]} 33. h5 {[%clk 0:00:41]}  Ke6 {[%clk 0:01:53]} 34. hxg6 {[%clk 0:00:16]}  hxg6 {[%clk 0:01:54]} 0-1


[Site "https://www.chess.com"]

[Event "Titled Tuesday Blitz October 31 Early 2023"]
[White "Babarsik1977"]
[Black "Gyulamiryan-koryun"]
[WhiteElo "2310"]
[BlackElo "1912"]
[Result "1-0"]
[Round "3"]
[TimeControl "180+1"]
[Date "2023.10.31"]
[WhiteClock "0:00:29"]
[BlackClock "0:00:00"]
[Board "197"]

1. e4 {[%clk 0:03:00]}  c5 {[%clk 0:02:59]} 2. Nc3 {[%clk 0:03:00]}  e6 {[%clk 0:02:51]} 3. f4 {[%clk 0:02:58]}  d5 {[%clk 0:02:48]} 4. Bb5+ {[%clk 0:02:56]}  Bd7 {[%clk 0:02:48]} 5. Bxd7+ {[%clk 0:02:54]}  Qxd7 {[%clk 0:02:48]} 6. Nf3 {[%clk 0:02:54]}  Nf6 {[%clk 0:02:45]} 7. d3 {[%clk 0:02:54]}  Nc6 {[%clk 0:02:44]} 8. e5 {[%clk 0:02:52]}  d4 {[%clk 0:02:35]} 9. exf6 {[%clk 0:02:42]}  dxc3 {[%clk 0:02:34]} 10. bxc3 {[%clk 0:02:39]}  gxf6 {[%clk 0:02:33]} 11. O-O {[%clk 0:02:39]}  Be7 {[%clk 0:02:32]} 12. Rb1 {[%clk 0:02:38]}  O-O-O {[%clk 0:02:28]} 13. Qe2 {[%clk 0:02:34]}  Rhg8 {[%clk 0:02:25]} 14. Be3 {[%clk 0:02:32]}  Qc7 {[%clk 0:02:17]} 15. d4 {[%clk 0:02:17]}  cxd4 {[%clk 0:02:08]} 16. cxd4 {[%clk 0:02:17]}  Rd5 {[%clk 0:02:06]} 17. c4 {[%clk 0:02:13]}  Ra5 {[%clk 0:01:47]} 18. Rb5 {[%clk 0:02:01]}  Rd8 {[%clk 0:01:36]} 19. Rfb1 {[%clk 0:01:57]}  a6 {[%clk 0:01:28]} 20. Rxa5 {[%clk 0:01:42]}  Qxa5 {[%clk 0:01:25]} 21. f5 {[%clk 0:01:20]}  Qxf5 {[%clk 0:01:10]} 22. Qb2 {[%clk 0:01:20]}  Rd7 {[%clk 0:01:09]} 23. Bf2 {[%clk 0:01:04]}  Nb4 {[%clk 0:00:57]} 24. Rd1 {[%clk 0:00:45]}  Nd3 {[%clk 0:00:52]} 25. Qc2 {[%clk 0:00:45]}  Nxf2 {[%clk 0:00:50]} 26. Qxf5 {[%clk 0:00:45]}  exf5 {[%clk 0:00:50]} 27. Kxf2 {[%clk 0:00:45]}  Rc7 {[%clk 0:00:39]} 28. Rc1 {[%clk 0:00:41]}  b5 {[%clk 0:00:37]} 29. c5 {[%clk 0:00:40]}  Kd7 {[%clk 0:00:30]} 30. Nh4 {[%clk 0:00:31]}  Ke6 {[%clk 0:00:20]} 31. Re1+ {[%clk 0:00:30]}  Kd5 {[%clk 0:00:18]} 32. Nxf5 {[%clk 0:00:30]}  Bf8 {[%clk 0:00:00]} 33. Re8 {[%clk 0:00:29]} 1-0


[Site "https://www.chess.com"]

[Event "Titled Tuesday Blitz October 31 Early 2023"]
[White "Mohammadian,Mohammad"]
[Black "Shapiro, Daniel"]
[WhiteFideId "12566055"]
[BlackFideId "2001780"]
[WhiteElo "1864"]
[BlackElo "2303"]
[Result "0-1"]
[Round "3"]
[TimeControl "180+1"]
[Date "2023.10.31"]
[WhiteClock "0:00:26"]
[BlackClock "0:01:26"]
[Board "199"]

1. e4 {[%clk 0:03:00]}  c5 {[%clk 0:02:59]} 2. Nf3 {[%clk 0:03:00]}  Nc6 {[%clk 0:02:57]} 3. d4 {[%clk 0:03:00]}  cxd4 {[%clk 0:02:57]} 4. Nxd4 {[%clk 0:02:59]}  Nf6 {[%clk 0:02:57]} 5. Nc3 {[%clk 0:02:59]}  d6 {[%clk 0:02:58]} 6. Be2 {[%clk 0:02:59]}  e6 {[%clk 0:02:57]} 7. Be3 {[%clk 0:02:58]}  a6 {[%clk 0:02:57]} 8. O-O {[%clk 0:02:58]}  Be7 {[%clk 0:02:56]} 9. f4 {[%clk 0:02:55]}  Qc7 {[%clk 0:02:55]} 10. Qe1 {[%clk 0:02:53]}  Bd7 {[%clk 0:02:55]} 11. Qf2 {[%clk 0:02:53]}  Rb8 {[%clk 0:02:49]} 12. Rad1 {[%clk 0:02:49]}  O-O {[%clk 0:02:47]} 13. f5 {[%clk 0:02:40]}  Ne5 {[%clk 0:02:42]} 14. fxe6 {[%clk 0:02:35]}  fxe6 {[%clk 0:02:41]} 15. Qg3 {[%clk 0:02:24]}  Rbe8 {[%clk 0:02:26]} 16. Bh6 {[%clk 0:02:19]}  Rf7 {[%clk 0:02:23]} 17. Rxf6 {[%clk 0:01:44]}  Bxf6 {[%clk 0:02:13]} 18. Bh5 {[%clk 0:01:44]}  Ng6 {[%clk 0:02:00]} 19. Rf1 {[%clk 0:01:35]}  Bxd4+ {[%clk 0:01:55]} 20. Be3 {[%clk 0:01:17]}  Qc5 {[%clk 0:01:41]} 21. Rxf7 {[%clk 0:01:08]}  Bxe3+ {[%clk 0:01:39]} 22. Kh1 {[%clk 0:01:04]}  Kxf7 {[%clk 0:01:33]} 23. Bxg6+ {[%clk 0:01:03]}  hxg6 {[%clk 0:01:32]} 24. Qf3+ {[%clk 0:01:03]}  Kg8 {[%clk 0:01:30]} 25. Ne2 {[%clk 0:01:02]}  Rf8 {[%clk 0:01:27]} 26. Qg3 {[%clk 0:00:26]}  Rf1+ {[%clk 0:01:26]} 0-1


[Site "https://www.chess.com"]

[Event "Titled Tuesday Blitz October 31 Early 2023"]
[White "ssgm49"]
[Black "ReinisUz"]
[WhiteElo "1825"]
[BlackElo "2298"]
[Result "0-1"]
[Round "3"]
[TimeControl "180+1"]
[Date "2023.10.31"]
[WhiteClock "0:00:02"]
[BlackClock "0:00:10"]
[Board "200"]

1. Nf3 {[%clk 0:03:00]}  c5 {[%clk 0:02:53]} 2. c4 {[%clk 0:02:52]}  Nc6 {[%clk 0:02:49]} 3. Nc3 {[%clk 0:02:50]}  g6 {[%clk 0:02:48]} 4. d4 {[%clk 0:02:48]}  cxd4 {[%clk 0:02:24]} 5. Nxd4 {[%clk 0:02:48]}  Bg7 {[%clk 0:02:25]} 6. Nc2 {[%clk 0:02:05]}  Nf6 {[%clk 0:02:24]} 7. e4 {[%clk 0:01:55]}  O-O {[%clk 0:02:21]} 8. Be2 {[%clk 0:01:36]}  d6 {[%clk 0:02:19]} 9. O-O {[%clk 0:01:35]}  b6 {[%clk 0:02:13]} 10. Be3 {[%clk 0:01:30]}  Bb7 {[%clk 0:02:12]} 11. Qd2 {[%clk 0:01:25]}  Rc8 {[%clk 0:02:08]} 12. f3 {[%clk 0:01:22]}  Ne5 {[%clk 0:02:04]} 13. b3 {[%clk 0:01:06]}  Nfd7 {[%clk 0:01:53]} 14. Rad1 {[%clk 0:01:03]}  Qc7 {[%clk 0:01:52]} 15. f4 {[%clk 0:00:51]}  Nc6 {[%clk 0:01:43]} 16. e5 {[%clk 0:00:46]}  Ncxe5 {[%clk 0:01:37]} 17. fxe5 {[%clk 0:00:43]}  Nxe5 {[%clk 0:01:38]} 18. Nd4 {[%clk 0:00:31]}  Qd7 {[%clk 0:01:25]} 19. Nd5 {[%clk 0:00:30]}  Rfe8 {[%clk 0:01:11]} 20. Nb5 {[%clk 0:00:20]}  Ng4 {[%clk 0:01:07]} 21. Bxg4 {[%clk 0:00:19]}  Qxg4 {[%clk 0:01:08]} 22. Nbc7 {[%clk 0:00:17]}  Rxc7 {[%clk 0:01:07]} 23. Nxc7 {[%clk 0:00:16]}  Rc8 {[%clk 0:01:05]} 24. Nd5 {[%clk 0:00:16]}  Qd7 {[%clk 0:01:03]} 25. Bg5 {[%clk 0:00:16]}  Re8 {[%clk 0:01:01]} 26. Rde1 {[%clk 0:00:15]}  f6 {[%clk 0:00:57]} 27. Bf4 {[%clk 0:00:13]}  e6 {[%clk 0:00:53]} 28. Ne3 {[%clk 0:00:12]}  e5 {[%clk 0:00:53]} 29. Bg3 {[%clk 0:00:12]}  f5 {[%clk 0:00:50]} 30. Nd5 {[%clk 0:00:12]}  f4 {[%clk 0:00:46]} 31. Bh4 {[%clk 0:00:11]}  Rf8 {[%clk 0:00:41]} 32. Ne7+ {[%clk 0:00:10]}  Kh8 {[%clk 0:00:41]} 33. Nd5 {[%clk 0:00:10]}  Rf7 {[%clk 0:00:35]} 34. Rd1 {[%clk 0:00:09]}  h6 {[%clk 0:00:34]} 35. Nc3 {[%clk 0:00:09]}  Bf8 {[%clk 0:00:32]} 36. Nb5 {[%clk 0:00:09]}  g5 {[%clk 0:00:31]} 37. Bf2 {[%clk 0:00:08]}  Qc6 {[%clk 0:00:30]} 38. Be1 {[%clk 0:00:08]}  Rd7 {[%clk 0:00:27]} 39. Nc3 {[%clk 0:00:07]}  Qc8 {[%clk 0:00:24]} 40. Nd5 {[%clk 0:00:07]}  Rf7 {[%clk 0:00:20]} 41. Qd3 {[%clk 0:00:07]}  Qg4 {[%clk 0:00:20]} 42. h3 {[%clk 0:00:07]}  Qe6 {[%clk 0:00:18]} 43. Rf3 {[%clk 0:00:05]}  h5 {[%clk 0:00:17]} 44. Rf1 {[%clk 0:00:05]}  g4 {[%clk 0:00:17]} 45. Bc3 {[%clk 0:00:05]}  Rg7 {[%clk 0:00:14]} 46. hxg4 {[%clk 0:00:05]}  hxg4 {[%clk 0:00:13]} 47. Kf2 {[%clk 0:00:04]}  g3+ {[%clk 0:00:13]} 48. Ke2 {[%clk 0:00:03]}  e4 {[%clk 0:00:13]} 49. Bxg7+ {[%clk 0:00:03]}  Bxg7 {[%clk 0:00:14]} 50. Qc2 {[%clk 0:00:03]}  f3+ {[%clk 0:00:12]} 51. gxf3 {[%clk 0:00:03]}  exf3+ {[%clk 0:00:13]} 52. Kxf3 {[%clk 0:00:04]}  Bc8 {[%clk 0:00:12]} 53. Rh1+ {[%clk 0:00:03]}  Kg8 {[%clk 0:00:11]} 54. Qh7+ {[%clk 0:00:04]}  Kf8 {[%clk 0:00:11]} 55. Kg2 {[%clk 0:00:04]}  Qe2+ {[%clk 0:00:10]} 56. Kg1 {[%clk 0:00:02]}  Qf2# {[%clk 0:00:10]} 0-1


[Site "https://www.chess.com"]

[Event "Titled Tuesday Blitz October 31 Early 2023"]
[White "Kamsky, Gata"]
[Black "Nakamura, Hikaru"]
[WhiteFideId "2000024"]
[BlackFideId "2016192"]
[WhiteElo "2812"]
[BlackElo "3237"]
[Result "0-1"]
[Round "4"]
[TimeControl "180+1"]
[Date "2023.10.31"]
[WhiteClock "0:01:06"]
[BlackClock "0:01:19"]
[Board "1"]

1. d4 {[%clk 0:03:00]}  Nf6 {[%clk 0:02:58]} 2. Bf4 {[%clk 0:02:59]}  d5 {[%clk 0:02:58]} 3. e3 {[%clk 0:02:59]}  c5 {[%clk 0:02:58]} 4. c3 {[%clk 0:02:58]}  Qb6 {[%clk 0:02:58]} 5. Qb3 {[%clk 0:02:58]}  c4 {[%clk 0:02:59]} 6. Qc2 {[%clk 0:02:57]}  g6 {[%clk 0:02:59]} 7. Nd2 {[%clk 0:02:56]}  Bf5 {[%clk 0:02:59]} 8. Qc1 {[%clk 0:02:56]}  Nc6 {[%clk 0:03:00]} 9. Ngf3 {[%clk 0:02:53]}  Nh5 {[%clk 0:03:00]} 10. Bg3 {[%clk 0:02:52]}  Nxg3 {[%clk 0:03:00]} 11. hxg3 {[%clk 0:02:52]}  Bg7 {[%clk 0:03:01]} 12. Be2 {[%clk 0:02:51]}  O-O {[%clk 0:03:00]} 13. O-O {[%clk 0:02:51]}  Rac8 {[%clk 0:03:00]} 14. Re1 {[%clk 0:02:49]}  h6 {[%clk 0:02:48]} 15. Bd1 {[%clk 0:02:48]}  g5 {[%clk 0:02:34]} 16. Bc2 {[%clk 0:02:40]}  Bxc2 {[%clk 0:02:31]} 17. Qxc2 {[%clk 0:02:40]}  f5 {[%clk 0:02:30]} 18. b3 {[%clk 0:02:21]}  cxb3 {[%clk 0:02:31]} 19. Qxb3 {[%clk 0:02:21]}  Qxb3 {[%clk 0:02:21]} 20. axb3 {[%clk 0:02:21]}  g4 {[%clk 0:02:19]} 21. Nh2 {[%clk 0:02:20]}  e5 {[%clk 0:02:19]} 22. b4 {[%clk 0:02:05]}  b6 {[%clk 0:02:18]} 23. Nb3 {[%clk 0:02:03]}  Rc7 {[%clk 0:02:18]} 24. b5 {[%clk 0:01:49]}  Ne7 {[%clk 0:02:16]} 25. dxe5 {[%clk 0:01:50]}  Bxe5 {[%clk 0:02:03]} 26. Nd4 {[%clk 0:01:49]}  Kf7 {[%clk 0:01:56]} 27. Nf1 {[%clk 0:01:46]}  Nc8 {[%clk 0:01:53]} 28. Ra3 {[%clk 0:01:44]}  Kf6 {[%clk 0:01:49]} 29. Rb1 {[%clk 0:01:36]}  Nd6 {[%clk 0:01:45]} 30. Nd2 {[%clk 0:01:27]}  Bxd4 {[%clk 0:01:37]} 31. exd4 {[%clk 0:01:23]}  Rfc8 {[%clk 0:01:28]} 32. Rbb3 {[%clk 0:01:23]}  Re8 {[%clk 0:01:22]} 33. Rb1 {[%clk 0:01:17]}  Re2 {[%clk 0:01:19]} 34. Rd1 {[%clk 0:01:06]}  Nxb5 {[%clk 0:01:19]} 0-1


[Site "https://www.chess.com"]

[Event "Titled Tuesday Blitz October 31 Early 2023"]
[White "Andreikin, Dmitry"]
[Black "Vakhlamov, Igor L."]
[WhiteFideId "4158814"]
[BlackFideId "24126748"]
[WhiteElo "3100"]
[BlackElo "2801"]
[Result "1-0"]
[Round "4"]
[TimeControl "180+1"]
[Date "2023.10.31"]
[WhiteClock "0:00:08"]
[BlackClock "0:00:00"]
[Board "2"]

1. c4 {[%clk 0:02:59]}  e6 {[%clk 0:02:59]} 2. Nf3 {[%clk 0:02:56]}  d5 {[%clk 0:02:59]} 3. g3 {[%clk 0:02:55]}  Nf6 {[%clk 0:02:59]} 4. Bg2 {[%clk 0:02:55]}  c5 {[%clk 0:02:59]} 5. cxd5 {[%clk 0:02:54]}  exd5 {[%clk 0:02:59]} 6. O-O {[%clk 0:02:54]}  Nc6 {[%clk 0:02:59]} 7. d4 {[%clk 0:02:54]}  Be7 {[%clk 0:03:00]} 8. dxc5 {[%clk 0:02:53]}  Bxc5 {[%clk 0:03:01]} 9. Qc2 {[%clk 0:02:48]}  Bb6 {[%clk 0:02:43]} 10. Nc3 {[%clk 0:02:45]}  O-O {[%clk 0:02:42]} 11. Bg5 {[%clk 0:02:34]}  Be6 {[%clk 0:02:42]} 12. Rad1 {[%clk 0:02:32]}  h6 {[%clk 0:02:42]} 13. Bxf6 {[%clk 0:02:07]}  Qxf6 {[%clk 0:02:43]} 14. e3 {[%clk 0:02:02]}  Rad8 {[%clk 0:02:15]} 15. Ne2 {[%clk 0:02:00]}  Bg4 {[%clk 0:01:47]} 16. Nf4 {[%clk 0:01:59]}  d4 {[%clk 0:01:39]} 17. e4 {[%clk 0:01:44]}  d3 {[%clk 0:01:21]} 18. Qa4 {[%clk 0:01:25]}  Ne5 {[%clk 0:00:42]} 19. Nxe5 {[%clk 0:01:09]}  Bxd1 {[%clk 0:00:43]} 20. Rxd1 {[%clk 0:00:52]}  Qxe5 {[%clk 0:00:43]} 21. Qb3 {[%clk 0:00:36]}  d2 {[%clk 0:00:30]} 22. Nd5 {[%clk 0:00:31]}  Qd4 {[%clk 0:00:22]} 23. Qf3 {[%clk 0:00:26]}  Qxb2 {[%clk 0:00:20]} 24. h4 {[%clk 0:00:23]}  Rfe8 {[%clk 0:00:19]} 25. Bf1 {[%clk 0:00:15]}  Qxa2 {[%clk 0:00:14]} 26. h5 {[%clk 0:00:14]}  Qc2 {[%clk 0:00:12]} 27. Bd3 {[%clk 0:00:14]}  Qc5 {[%clk 0:00:11]} 28. Rxd2 {[%clk 0:00:12]}  a5 {[%clk 0:00:08]} 29. Rc2 {[%clk 0:00:10]}  Qd4 {[%clk 0:00:08]} 30. Rc4 {[%clk 0:00:11]}  Qa1+ {[%clk 0:00:08]} 31. Kg2 {[%clk 0:00:11]}  Bd4 {[%clk 0:00:09]} 32. Rc7 {[%clk 0:00:11]}  Rf8 {[%clk 0:00:09]} 33. Rxb7 {[%clk 0:00:10]}  a4 {[%clk 0:00:09]} 34. Ne7+ {[%clk 0:00:09]}  Kh8 {[%clk 0:00:08]} 35. Nc6 {[%clk 0:00:10]}  Rc8 {[%clk 0:00:06]} 36. Rxf7 {[%clk 0:00:09]}  Rxf7 {[%clk 0:00:05]} 37. Qxf7 {[%clk 0:00:10]}  Qc3 {[%clk 0:00:02]} 38. Bb5 {[%clk 0:00:08]}  a3 {[%clk 0:00:02]} 39. e5 {[%clk 0:00:08]}  Bxe5 {[%clk 0:00:00]} 40. Qf5 {[%clk 0:00:08]} 1-0


[Site "https://www.chess.com"]

[Event "Titled Tuesday Blitz October 31 Early 2023"]
[White "Komov, Roman"]
[Black "So, Wesley"]
[WhiteFideId "24175714"]
[BlackFideId "5202213"]
[WhiteElo "2784"]
[BlackElo "3097"]
[Result "0-1"]
[Round "4"]
[TimeControl "180+1"]
[Date "2023.10.31"]
[WhiteClock "0:00:48"]
[BlackClock "0:00:19"]
[Board "3"]

1. e4 {[%clk 0:03:00]}  e6 {[%clk 0:02:51]} 2. d4 {[%clk 0:03:00]}  d5 {[%clk 0:02:52]} 3. e5 {[%clk 0:03:00]}  c5 {[%clk 0:02:51]} 4. c3 {[%clk 0:03:00]}  Nc6 {[%clk 0:02:52]} 5. Nf3 {[%clk 0:03:01]}  Qb6 {[%clk 0:02:53]} 6. a3 {[%clk 0:03:00]}  Nh6 {[%clk 0:02:53]} 7. b4 {[%clk 0:02:57]}  cxd4 {[%clk 0:02:53]} 8. Bxh6 {[%clk 0:02:57]}  gxh6 {[%clk 0:02:48]} 9. b5 {[%clk 0:02:58]}  Ne7 {[%clk 0:02:11]} 10. cxd4 {[%clk 0:02:58]}  Bd7 {[%clk 0:02:08]} 11. Nbd2 {[%clk 0:02:56]}  Rc8 {[%clk 0:01:55]} 12. a4 {[%clk 0:02:52]}  Rg8 {[%clk 0:01:34]} 13. g3 {[%clk 0:02:49]}  a5 {[%clk 0:01:14]} 14. Bd3 {[%clk 0:02:46]}  Rg4 {[%clk 0:01:04]} 15. O-O {[%clk 0:02:43]}  Rxd4 {[%clk 0:01:03]} 16. Nxd4 {[%clk 0:02:42]}  Qxd4 {[%clk 0:01:04]} 17. Nf3 {[%clk 0:02:43]}  Qg4 {[%clk 0:01:04]} 18. Kg2 {[%clk 0:02:37]}  Ng6 {[%clk 0:01:01]} 19. Qd2 {[%clk 0:02:21]}  Qb4 {[%clk 0:00:48]} 20. Rfc1 {[%clk 0:01:46]}  Qxd2 {[%clk 0:00:45]} 21. Rxc8+ {[%clk 0:01:45]}  Bxc8 {[%clk 0:00:46]} 22. Nxd2 {[%clk 0:01:46]}  Nxe5 {[%clk 0:00:45]} 23. Bxh7 {[%clk 0:01:46]}  b6 {[%clk 0:00:43]} 24. Rc1 {[%clk 0:01:43]}  Bc5 {[%clk 0:00:30]} 25. Nb3 {[%clk 0:01:42]}  Nd7 {[%clk 0:00:29]} 26. f4 {[%clk 0:01:31]}  Bb7 {[%clk 0:00:29]} 27. Bd3 {[%clk 0:01:30]}  Bd6 {[%clk 0:00:27]} 28. Kf2 {[%clk 0:01:29]}  Ke7 {[%clk 0:00:27]} 29. Nd4 {[%clk 0:01:26]}  Bc5 {[%clk 0:00:25]} 30. Ke3 {[%clk 0:01:05]}  f6 {[%clk 0:00:25]} 31. Bf5 {[%clk 0:01:03]}  exf5 {[%clk 0:00:21]} 32. Kd3 {[%clk 0:01:00]}  Bxd4 {[%clk 0:00:21]} 33. Rc7 {[%clk 0:00:52]}  Kd6 {[%clk 0:00:20]} 34. Rxb7 {[%clk 0:00:48]}  Nc5+ {[%clk 0:00:19]} 0-1


[Site "https://www.chess.com"]

[Event "Titled Tuesday Blitz October 31 Early 2023"]
[White "Keymer, Vincent"]
[Black "Liyanage, Ranindu Dilshan"]
[WhiteFideId "12940690"]
[BlackFideId "9915834"]
[WhiteElo "3055"]
[BlackElo "2780"]
[Result "1-0"]
[Round "4"]
[TimeControl "180+1"]
[Date "2023.10.31"]
[WhiteClock "0:00:06"]
[BlackClock "0:00:00"]
[Board "4"]

1. a3 {[%clk 0:03:00]}  g6 {[%clk 0:02:37]} 2. Nf3 {[%clk 0:02:58]}  Bg7 {[%clk 0:02:36]} 3. d4 {[%clk 0:02:59]}  d5 {[%clk 0:02:36]} 4. c3 {[%clk 0:02:49]}  Nf6 {[%clk 0:02:33]} 5. Bf4 {[%clk 0:02:49]}  O-O {[%clk 0:02:33]} 6. h3 {[%clk 0:02:48]}  b6 {[%clk 0:02:33]} 7. e3 {[%clk 0:02:48]}  Bb7 {[%clk 0:02:33]} 8. Nbd2 {[%clk 0:02:47]}  c5 {[%clk 0:02:33]} 9. Bd3 {[%clk 0:02:47]}  Nc6 {[%clk 0:02:33]} 10. O-O {[%clk 0:02:48]}  Re8 {[%clk 0:02:30]} 11. Bh2 {[%clk 0:02:45]}  Nd7 {[%clk 0:02:21]} 12. Bc2 {[%clk 0:02:12]}  e5 {[%clk 0:02:14]} 13. e4 {[%clk 0:02:12]}  cxd4 {[%clk 0:02:07]} 14. exd5 {[%clk 0:02:10]}  Ne7 {[%clk 0:02:02]} 15. c4 {[%clk 0:01:57]}  Nc5 {[%clk 0:01:53]} 16. Bxe5 {[%clk 0:01:53]}  Bxe5 {[%clk 0:01:50]} 17. Nxe5 {[%clk 0:01:54]}  Nxd5 {[%clk 0:01:46]} 18. Nxf7 {[%clk 0:01:25]}  Kxf7 {[%clk 0:01:47]} 19. cxd5 {[%clk 0:01:22]}  Qxd5 {[%clk 0:01:47]} 20. Qg4 {[%clk 0:01:23]}  Re2 {[%clk 0:01:28]} 21. Rad1 {[%clk 0:00:39]}  d3 {[%clk 0:01:21]} 22. Bb1 {[%clk 0:00:38]}  Rae8 {[%clk 0:01:15]} 23. b4 {[%clk 0:00:38]}  h5 {[%clk 0:00:40]} 24. Qc4 {[%clk 0:00:29]}  Na4 {[%clk 0:00:12]} 25. Bxd3 {[%clk 0:00:27]}  R2e5 {[%clk 0:00:11]} 26. Qxd5+ {[%clk 0:00:21]}  Bxd5 {[%clk 0:00:12]} 27. Nc4 {[%clk 0:00:21]}  Bxc4 {[%clk 0:00:06]} 28. Bxc4+ {[%clk 0:00:22]}  Kg7 {[%clk 0:00:07]} 29. Rd7+ {[%clk 0:00:20]}  R8e7 {[%clk 0:00:07]} 30. Rd8 {[%clk 0:00:10]}  Nb2 {[%clk 0:00:06]} 31. Bb3 {[%clk 0:00:11]}  Re2 {[%clk 0:00:05]} 32. g3 {[%clk 0:00:11]}  h4 {[%clk 0:00:05]} 33. g4 {[%clk 0:00:10]}  Rc7 {[%clk 0:00:03]} 34. Kg2 {[%clk 0:00:08]}  b5 {[%clk 0:00:03]} 35. Bd5 {[%clk 0:00:07]}  Nc4 {[%clk 0:00:03]} 36. Bf3 {[%clk 0:00:08]}  Ra2 {[%clk 0:00:03]} 37. Kg1 {[%clk 0:00:08]}  Rxa3 {[%clk 0:00:03]} 38. Bg2 {[%clk 0:00:07]}  Rc3 {[%clk 0:00:03]} 39. Re1 {[%clk 0:00:08]}  Rf7 {[%clk 0:00:03]} 40. Bd5 {[%clk 0:00:06]}  Rc7 {[%clk 0:00:04]} 41. Ree8 {[%clk 0:00:06]}  Rc2 {[%clk 0:00:04]} 42. g5 {[%clk 0:00:06]}  Rc1+ {[%clk 0:00:02]} 43. Kg2 {[%clk 0:00:06]}  Ne5 {[%clk 0:00:00]} 44. Rxe5 {[%clk 0:00:06]} 1-0


[Site "https://www.chess.com"]